bitfinex-derivatives/quotes_BTCF0:USTF0_20241010
["timestamp","ask_amount","ask_price","bid_price","bid_amount"]
[1728594539250,0.11953159,59755.0,59754.0,0.60186904]
[1728594540351,0.11953159,59755.0,59754.0,0.57136904]
[1728594540649,0.11953159,59755.0,59754.0,0.4453432]
[1728594541148,0.11953159,59755.0,59754.0,0.57141168]
[1728594541649,0.11953159,59755.0,59754.0,0.41187642]
[1728594542853,0.11953159,59755.0,59754.0,0.05107642]
[1728594543052,0.11953159,59755.0,59754.0,0.41187642]
[1728594543351,0.11953159,59755.0,59754.0,0.3618]
[1728594549058,0.11953159,59755.0,59754.0,0.001]
[1728594549364,0.11953159,59755.0,59754.0,0.42856856]
[1728594549554,0.11953159,59755.0,59754.0,0.48806419]
[1728594550266,0.11953159,59755.0,59754.0,0.58840204]
[1728594551566,0.11953159,59755.0,59754.0,0.22760204]
[1728594551967,0.11953159,59755.0,59754.0,0.58840204]
[1728594552269,0.11953159,59755.0,59754.0,0.48806419]
[1728594554269,0.11953159,59755.0,59754.0,0.63868195]
[1728594556076,0.11953159,59755.0,59754.0,0.27788195]
[1728594556382,0.11953159,59755.0,59754.0,0.63868195]
[1728594556572,0.11953159,59755.0,59754.0,0.001]
[1728594556771,0.11953159,59755.0,59754.0,0.3618]
[1728594557286,0.11953159,59755.0,59754.0,0.001]
[1728594562285,0.48033159,59755.0,59754.0,0.001]
[1728594562876,0.48033159,59755.0,59754.0,0.05118789]
[1728594563076,0.98237159,59755.0,59754.0,0.05118789]
[1728594563284,0.98237159,59755.0,59754.0,0.001]
[1728594563675,0.98237159,59755.0,59754.0,0.12734433]
[1728594564981,0.48033159,59755.0,59754.0,0.12734433]
[1728594565975,0.11953159,59755.0,59754.0,0.12734433]
[1728594566291,0.48033159,59755.0,59754.0,0.2109404]
[1728594569081,0.48033159,59755.0,59754.0,0.08459607]
[1728594569289,0.48033159,59755.0,59754.0,0.001]
[1728594577388,0.083757,59753.0,59752.0,0.08359607]
[1728594577595,0.083758,59752.0,59751.0,0.08359607]
[1728594577890,0.08376,59751.0,59750.0,0.08359607]
[1728594578095,0.083762,59749.0,59748.0,0.08359607]
[1728594578305,0.083762,59749.0,59738.0,0.3608]
[1728594578306,0.3608,59749.0,59747.0,0.08359607]
[1728594578489,0.146764,59748.0,59746.0,0.08359607]
[1728594578689,0.083768,59745.0,59744.0,0.05015045]
[1728594579788,0.083768,59745.0,59744.0,0.05415045]
[1728594580293,0.083768,59745.0,59744.0,0.004]
[1728594581893,0.084768,59745.0,59744.0,0.01]
[1728594584702,0.10940354,59745.0,59744.0,0.01]
[1728594595804,0.10940354,59745.0,59744.0,0.06684959]
[1728594596007,0.10940354,59745.0,59734.0,0.10429162]
[1728594596008,0.10940354,59745.0,59743.0,0.06684959]
[1728594596304,0.083769,59744.0,59743.0,0.06684959]
[1728594597511,0.083769,59744.0,59743.0,0.07184959]
[1728594597712,0.083769,59744.0,59743.0,0.07684959]
[1728594598009,0.083776,59739.0,59738.0,0.08359607]
[1728594598200,0.083778,59738.0,59737.0,0.08359607]
[1728594598398,0.04185706,59738.0,59737.0,0.21028917]
[1728594598603,0.04185706,59738.0,59737.0,0.08359607]
[1728594599006,0.083779,59737.0,59736.0,0.08359607]
[1728594599305,0.083779,59737.0,59736.0,0.20943974]
[1728594599706,0.083779,59737.0,59736.0,0.19022125]
[1728594599911,0.083782,59735.0,59734.0,0.08352296]
[1728594601120,0.083783,59734.0,59733.0,0.08352296]
[1728594601611,0.3608,59734.0,59730.0,0.08352296]
[1728594601812,0.083788,59731.0,59730.0,0.08352296]
[1728594602112,0.083789,59730.0,59729.0,0.08352296]
[1728594602312,0.083789,59730.0,59728.0,0.08352296]
[1728594602713,0.083789,59730.0,59729.0,0.08352296]
[1728594603113,0.084789,59730.0,59729.0,0.08452296]
[1728594603615,0.083789,59730.0,59729.0,0.08352296]
[1728594603817,0.084789,59730.0,59729.0,0.08352296]
[1728594604314,0.084789,59730.0,59729.0,0.08452296]
[1728594604818,0.085789,59730.0,59729.0,0.08752296]
[1728594605016,0.002,59730.0,59729.0,0.08752296]
[1728594605218,0.002,59730.0,59729.0,0.44859]
[1728594607013,0.002,59730.0,59729.0,1.55087]
[1728594607813,0.083784,59734.0,59729.0,1.46708]
[1728594608118,0.083785,59733.0,59732.0,0.083786]
[1728594608411,0.02388183,59734.0,59733.0,0.083784]
[1728594608611,0.083781,59736.0,59730.0,0.10024779]
[1728594608810,0.083781,59736.0,59735.0,0.16732369]
[1728594609014,0.083781,59736.0,59735.0,0.083782]
[1728594609910,0.083781,59736.0,59735.0,0.178282]
[1728594610110,0.084781,59736.0,59735.0,0.184282]
[1728594610318,0.10864328,59736.0,59735.0,0.184282]
[1728594610911,0.10964328,59736.0,59735.0,0.188282]
[1728594614321,0.10964328,59736.0,59735.0,0.0421]
[1728594614724,0.10964328,59736.0,59735.0,0.25149769]
[1728594615223,0.10964328,59736.0,59735.0,0.21939769]
[1728594617019,0.10964328,59736.0,59735.0,0.01]
[1728594619122,0.39027145,59763.0,59735.0,0.01]
[1728594619432,0.11711404,59808.0,59787.0,0.3608]
[1728594619723,0.083664,59820.0,59808.0,0.083679]
[1728594619724,0.00084,59809.0,59808.0,0.083679]
[1728594619926,0.083669,59816.0,59808.0,0.12754106]
[1728594620125,0.3608,59819.0,59809.0,0.04973801]
[1728594620316,0.083673,59813.0,59807.0,0.36184]
[1728594620516,0.86236,59819.0,59807.0,0.3608]
[1728594620517,0.083667,59818.0,59807.0,0.3608]
[1728594620821,0.083672,59814.0,59807.0,0.3608]
[1728594621420,0.083673,59813.0,59807.0,0.3608]
[1728594622527,0.004,59809.0,59807.0,0.3608]
[1728594622924,0.083674,59812.0,59807.0,0.3608]
[1728594623227,0.083674,59812.0,59808.0,0.001]
[1728594623726,0.002,59809.0,59808.0,0.001]
[1728594624319,0.090674,59812.0,59808.0,0.002]
[1728594624515,0.083678,59809.0,59808.0,0.002]
[1728594624725,0.08368,59808.0,59807.0,0.3109]
[1728594624921,0.083683,59806.0,59802.0,0.3608]
[1728594625122,0.0323,59811.0,59802.0,0.3608]
[1728594625329,0.083687,59803.0,59802.0,0.3608]
[1728594626219,0.083687,59803.0,59802.0,0.3618]
[1728594626416,0.093687,59803.0,59802.0,0.3628]
[1728594626829,0.093687,59803.0,59802.0,0.3618]
[1728594627024,0.086687,59803.0,59802.0,0.3618]
[1728594627428,0.083687,59803.0,59802.0,0.3618]
[1728594627623,0.093687,59803.0,59802.0,0.002]
[1728594628528,0.094687,59803.0,59802.0,0.001]
[1728594628929,0.084687,59803.0,59796.0,0.3608]
[1728594629230,0.083695,59798.0,59796.0,0.3608]
[1728594629420,0.102687,59803.0,59802.0,0.001]
[1728594629627,0.108687,59803.0,59802.0,0.001]
[1728594630126,0.083695,59797.0,59796.0,0.3618]
[1728594632325,0.091695,59797.0,59796.0,0.3608]
[1728594633336,0.100695,59797.0,59796.0,0.3618]
[1728594634131,0.099695,59797.0,59796.0,0.3618]
[1728594634831,0.098695,59797.0,59796.0,0.3618]
[1728594635329,0.12306895,59797.0,59796.0,0.3618]
[1728594635637,0.11706895,59797.0,59796.0,0.3618]
[1728594635836,0.12606895,59797.0,59796.0,0.3618]
[1728594636037,0.04237395,59797.0,59796.0,0.3618]
[1728594636332,0.03237395,59797.0,59796.0,0.3608]
[1728594636520,0.03237395,59797.0,59796.0,0.3618]
[1728594636521,0.12406895,59797.0,59796.0,0.3618]
[1728594636823,0.11606895,59797.0,59796.0,0.3618]
[1728594637025,0.12506895,59797.0,59796.0,0.3618]
[1728594637839,0.11706895,59797.0,59796.0,0.3608]
[1728594638133,0.12406895,59797.0,59796.0,0.3618]
[1728594638635,0.12306895,59797.0,59796.0,0.3618]
[1728594639128,0.006,59797.0,59796.0,0.3618]
[1728594639329,0.0245082,59802.0,59796.0,0.3618]
[1728594639538,0.083695,59797.0,59796.0,0.3608]
[1728594639726,0.098695,59797.0,59796.0,0.3618]
[1728594640128,0.098695,59797.0,59796.0,0.001]
[1728594640336,0.098695,59797.0,59796.0,0.3618]
[1728594641620,0.090695,59797.0,59796.0,0.3618]
[1728594642335,0.090695,59797.0,59796.0,0.3608]
[1728594642827,0.007,59797.0,59790.0,0.083705]
[1728594643029,0.090695,59797.0,59796.0,0.3608]
[1728594643528,0.05581615,59797.0,59796.0,0.3608]
[1728594643732,0.083698,59795.0,59791.0,0.3608]
[1728594644036,0.083698,59795.0,59791.0,0.7216]
[1728594644428,0.083698,59795.0,59794.0,0.3608]
[1728594645127,0.0837,59794.0,59791.0,0.7216]
[1728594645435,0.083702,59792.0,59791.0,0.80371088]
[1728594645633,0.083702,59792.0,59791.0,0.7216]
[1728594646330,0.083702,59792.0,59791.0,0.84916693]
[1728594646529,0.085702,59792.0,59791.0,0.84916693]
[1728594646834,0.086702,59792.0,59791.0,0.84916693]
[1728594647034,0.086702,59792.0,59791.0,0.12756699]
[1728594647235,0.086702,59792.0,59791.0,0.48836699]
[1728594647534,0.086702,59792.0,59791.0,0.58690005]
[1728594648238,0.002,59792.0,59791.0,0.72734174]
[1728594648433,0.004,59792.0,59791.0,0.72734174]
[1728594649138,0.004,59792.0,59791.0,0.91031261]
[1728594649330,0.002,59792.0,59791.0,0.91031261]
[1728594650938,0.002,59792.0,59791.0,1.27111261]
[1728594651636,0.001,59792.0,59791.0,1.27110702]
[1728594654134,0.0837,59794.0,59791.0,0.93286849]
[1728594654342,0.0837,59794.0,59792.0,0.12756449]
[1728594654538,0.0837,59794.0,59793.0,0.12756449]
[1728594655241,0.0867,59794.0,59793.0,0.12756449]
[1728594655441,0.0867,59794.0,59793.0,0.22760033]
[1728594655940,0.0897,59794.0,59793.0,0.22760033]
[1728594657336,0.0867,59794.0,59793.0,0.22760033]
[1728594657536,0.0897,59794.0,59793.0,0.22760033]
[1728594657743,0.0877,59794.0,59793.0,0.22760033]
[1728594658137,0.0877,59794.0,59793.0,0.12756449]
[1728594659041,0.004,59794.0,59793.0,0.21126549]
[1728594659945,0.004,59794.0,59791.0,0.00104]
[1728594660143,0.083702,59792.0,59789.0,0.10003584]
[1728594660348,0.083702,59792.0,59789.0,0.083706]
[1728594660546,0.083702,59792.0,59788.0,0.10003584]
[1728594660748,0.083702,59792.0,59790.0,0.083705]
[1728594661951,0.19,59793.0,59791.0,0.083704]
[1728594662143,0.002,59794.0,59792.0,0.33824748]
[1728594662351,0.083699,59795.0,59793.0,0.27211664]
[1728594662646,0.083698,59795.0,59794.0,0.15527178]
[1728594663747,0.086698,59795.0,59794.0,0.45509225]
[1728594663941,0.086698,59795.0,59794.0,0.27211664]
[1728594664145,0.086698,59795.0,59794.0,0.12690108]
[1728594664338,0.083705,59790.0,59786.0,0.13137742]
[1728594664544,0.083704,59791.0,59784.0,0.13137742]
[1728594664545,0.5508,59787.0,59784.0,0.13137742]
[1728594664743,0.19,59785.0,59783.0,0.13137742]
[1728594664945,0.19,59784.0,59779.0,0.50859959]
[1728594665151,0.36930404,59787.0,59783.0,0.11681419]
[1728594665455,0.273713,59784.0,59783.0,0.11681419]
[1728594665656,0.273713,59784.0,59783.0,0.2998202]
[1728594665845,0.273713,59784.0,59783.0,1.7098202]
[1728594666247,0.273713,59784.0,59783.0,1.41]
[1728594666955,0.278713,59784.0,59783.0,1.41]
[1728594668753,0.283713,59784.0,59783.0,1.41]
[1728594669147,0.2,59784.0,59783.0,1.41]
[1728594669855,0.283713,59784.0,59783.0,1.41]
[1728594671249,0.283713,59784.0,59783.0,1.4766633]
[1728594672358,0.273713,59784.0,59783.0,1.41]
[1728594673052,0.29292193,59784.0,59783.0,1.41]
[1728594674247,0.39920893,59784.0,59777.0,0.0666633]
[1728594674454,0.39920893,59784.0,59775.0,0.00250911]
[1728594674455,0.083725,59776.0,59775.0,0.06917241]
[1728594674854,0.083725,59776.0,59775.0,0.00250911]
[1728594675361,0.083725,59776.0,59775.0,1.36250911]
[1728594676965,0.083725,59776.0,59775.0,1.36550911]
[1728594680762,0.10320353,59776.0,59775.0,1.36550911]
[1728594681464,0.10320353,59776.0,59775.0,1.363]
[1728594684473,0.23320353,59776.0,59775.0,1.363]
[1728594686366,0.10320353,59776.0,59775.0,1.363]
[1728594686561,0.10320353,59776.0,59775.0,1.65768593]
[1728594686961,0.10320353,59776.0,59775.0,1.57433172]
[1728594688269,0.06131087,59776.0,59775.0,1.57433106]
[1728594689370,0.19131087,59776.0,59775.0,1.57433106]
[1728594691271,0.19131087,59776.0,59775.0,1.446726]
[1728594694975,0.19131087,59776.0,59775.0,1.363]
[1728594699278,0.19131087,59776.0,59775.0,1.4906139]
[1728594700579,0.55211087,59776.0,59775.0,1.4906139]
[1728594700975,1.78399087,59776.0,59775.0,0.10812873]
[1728594701177,0.083733,59770.0,59768.0,0.10004296]
[1728594701376,0.083737,59767.0,59766.0,0.10004296]
[1728594701581,0.213737,59767.0,59766.0,0.10004296]
[1728594702086,0.13,59767.0,59765.0,1.46112296]
[1728594702386,0.114939,59766.0,59765.0,1.46004296]
[1728594703177,0.114939,59766.0,59765.0,1.36]
[1728594703778,0.117939,59766.0,59765.0,1.36]
[1728594704483,0.121939,59766.0,59765.0,1.36]
[1728594708390,0.152339,59766.0,59765.0,1.36]
[1728594709088,0.0686,59766.0,59760.0,0.06676103]
[1728594709297,0.083746,59761.0,59760.0,0.06676103]
[1728594709589,0.083746,59761.0,59760.0,1.36]
[1728594711490,0.083746,59761.0,59760.0,1.361]
[1728594716187,0.083746,59761.0,59760.0,1.48863615]
[1728594716401,0.213746,59761.0,59760.0,1.48863615]
[1728594716892,0.213746,59761.0,59760.0,1.48863614]
[1728594721399,0.213746,59761.0,59760.0,1.361]
[1728594728320,0.213746,59761.0,59760.0,1.42774387]
[1728594729413,0.213746,59761.0,59760.0,1.58867909]
[1728594730235,0.213746,59761.0,59760.0,1.48863613]
[1728594731029,0.01990907,59766.0,59765.0,0.08374]
[1728594731230,0.01990907,59766.0,59765.0,0.36585729]
[1728594731231,0.083739,59766.0,59765.0,0.36585729]
[1728594731621,0.083736,59769.0,59766.0,0.083738]
[1728594731822,0.083736,59768.0,59767.0,0.2278819]
[1728594732222,0.083736,59768.0,59767.0,0.12763613]
[1728594732933,0.088736,59768.0,59767.0,0.12763613]
[1728594733430,0.04683793,59768.0,59767.0,0.22786418]
[1728594733623,0.04283793,59768.0,59767.0,0.22786418]
[1728594735227,0.04183793,59768.0,59767.0,0.12763613]
[1728594738731,0.10403793,59768.0,59767.0,0.12763613]
[1728594739031,0.10403793,59768.0,59767.0,0.08355158]
[1728594739527,0.10403793,59768.0,59767.0,0.21118379]
[1728594739723,0.11203793,59768.0,59767.0,0.21118379]
[1728594741131,0.10803793,59768.0,59767.0,0.08355158]
[1728594741435,0.11203793,59768.0,59767.0,0.21118346]
[1728594741626,0.11203793,59768.0,59767.0,0.08355158]
[1728594741829,0.11203793,59768.0,59767.0,0.21118356]
[1728594742129,0.11203793,59768.0,59767.0,0.08355158]
[1728594742336,0.47283793,59768.0,59767.0,0.21118359]
[1728594742534,0.46883793,59768.0,59767.0,0.21118359]
[1728594742730,0.47283793,59768.0,59767.0,0.21118359]
[1728594743035,0.47283793,59768.0,59767.0,0.08355158]
[1728594743332,0.47283793,59768.0,59767.0,0.21118357]
[1728594743333,0.60283793,59768.0,59767.0,0.21118357]
[1728594744434,0.60283793,59768.0,59765.0,0.06686217]
[1728594744435,0.083738,59767.0,59765.0,0.06686217]
[1728594744635,0.13,59766.0,59765.0,0.06686217]
[1728594744837,0.083738,59767.0,59763.0,0.083743]
[1728594745028,0.083738,59767.0,59766.0,0.0668619]
[1728594745223,0.213738,59767.0,59766.0,0.0668619]
[1728594745935,0.216738,59767.0,59766.0,0.0668619]
[1728594747035,0.579538,59767.0,59766.0,0.0668619]
[1728594747437,0.578538,59767.0,59766.0,0.0668619]
[1728594747645,0.448538,59767.0,59765.0,0.0668619]
[1728594747939,0.13,59766.0,59765.0,0.0668619]
[1728594748136,0.13,59766.0,59764.0,0.083741]
[1728594748344,0.213739,59766.0,59764.0,0.083741]
[1728594748840,0.13,59766.0,59765.0,0.08374]
[1728594749335,0.0622,59768.0,59765.0,0.08374]
[1728594749539,0.145937,59768.0,59767.0,0.06687251]
[1728594749834,0.083739,59766.0,59765.0,0.08374]
[1728594751442,0.083739,59766.0,59765.0,0.21136229]
[1728594752944,0.083739,59766.0,59765.0,0.12762229]
[1728594756945,0.083739,59766.0,59765.0,0.21136229]
[1728594758545,0.083739,59766.0,59765.0,0.21136659]
[1728594759446,0.083739,59766.0,59765.0,0.08374]
[1728594764048,0.083741,59764.0,59763.0,0.08355984]
[1728594764250,0.083741,59764.0,59763.0,0.21118644]
[1728594765348,0.083741,59764.0,59763.0,0.29792944]
[1728594766442,0.083741,59764.0,59763.0,0.2143696]
[1728594766649,0.083741,59764.0,59763.0,0.36876545]
[1728594767955,0.083741,59764.0,59763.0,0.36877091]
[1728594770949,0.10366475,59764.0,59763.0,0.36877091]
[1728594771146,0.01992375,59764.0,59763.0,0.36877091]
[1728594771351,0.083741,59764.0,59763.0,0.36877091]
[1728594777460,0.083741,59764.0,59763.0,0.36827061]
[1728594778559,0.3815657,59767.0,59763.0,0.36827061]
[1728594778752,0.083727,59775.0,59766.0,0.343739]
[1728594779070,0.083727,59775.0,59774.0,0.13]
[1728594779362,0.083727,59775.0,59774.0,0.41118976]
[1728594779858,0.091727,59775.0,59774.0,0.49491676]
[1728594780461,0.083727,59775.0,59774.0,0.49491676]
[1728594780669,0.091727,59775.0,59774.0,0.49491676]
[1728594780859,0.098727,59775.0,59774.0,0.49591676]
[1728594781068,0.098727,59775.0,59774.0,0.49526825]
[1728594781665,0.098727,59775.0,59774.0,0.214727]
[1728594782364,0.097727,59775.0,59774.0,0.26480065]
[1728594785180,0.097727,59775.0,59774.0,0.26476488]
[1728594786278,0.097727,59775.0,59774.0,0.084727]
[1728594786576,0.097727,59775.0,59774.0,0.001]
[1728594786577,0.227727,59775.0,59774.0,0.001]
[1728594789680,0.227727,59775.0,59774.0,0.12860579]
[1728594790485,0.227727,59775.0,59774.0,0.12860569]
[1728594790875,0.097727,59775.0,59774.0,0.12860569]
[1728594791082,0.227727,59775.0,59774.0,0.12860569]
[1728594793380,0.227727,59775.0,59774.0,0.21233269]
[1728594796877,0.227727,59775.0,59774.0,0.084727]
[1728594797993,0.227727,59775.0,59774.0,0.15140386]
[1728594802384,0.227727,59775.0,59774.0,0.084727]
[1728594802881,0.227727,59775.0,59774.0,0.1514459]
[1728594803284,0.227727,59775.0,59774.0,0.084727]
[1728594804787,0.227727,59775.0,59774.0,0.212333]
[1728594806389,0.227727,59775.0,59774.0,0.31250548]
[1728594807280,0.227727,59775.0,59774.0,0.212333]
[1728594807980,0.227727,59775.0,59774.0,0.36535439]
[1728594808578,0.227727,59775.0,59774.0,0.128606]
[1728594811790,0.227727,59775.0,59774.0,0.001]
[1728594813583,0.357727,59775.0,59774.0,0.001]
[1728594813788,0.357727,59775.0,59773.0,0.06681841]
[1728594813984,0.2924,59774.0,59772.0,0.06681841]
[1728594814287,0.343729,59773.0,59772.0,0.06681841]
[1728594814887,0.08373,59772.0,59771.0,0.06681841]
[1728594815089,0.24403,59772.0,59770.0,0.06681841]
[1728594815395,0.083733,59770.0,59769.0,0.06681841]
[1728594815582,0.574533,59770.0,59769.0,0.06681841]
[1728594815783,0.605433,59770.0,59769.0,0.06681841]
[1728594816298,0.083734,59769.0,59768.0,0.06681841]
[1728594817296,0.444534,59769.0,59768.0,0.06681841]
[1728594818285,0.083736,59768.0,59767.0,0.06681841]
[1728594818601,0.213736,59768.0,59767.0,0.06681841]
[1728594819392,0.214736,59768.0,59767.0,0.06681841]
[1728594819796,0.214736,59768.0,59767.0,0.12762207]
[1728594820294,0.214736,59768.0,59767.0,0.22777974]
[1728594821194,0.214736,59768.0,59767.0,0.12762207]
[1728594822601,0.575536,59768.0,59767.0,0.12762207]
[1728594823300,0.5336369,59768.0,59767.0,0.12762207]
[1728594823505,0.1728369,59768.0,59767.0,0.12762207]
[1728594823807,0.5336369,59768.0,59767.0,0.12762466]
[1728594825191,0.0428369,59768.0,59767.0,0.12762466]
[1728594825399,0.5336369,59768.0,59767.0,0.12762466]
[1728594825703,0.1728369,59768.0,59767.0,0.12762466]
[1728594825890,0.02147495,59769.0,59767.0,0.12762466]
[1728594826095,0.1609,59770.0,59768.0,0.22774345]
[1728594826396,0.213734,59769.0,59768.0,0.083736]
[1728594826699,0.0309,59770.0,59768.0,0.12762095]
[1728594826904,0.0526582,59770.0,59769.0,0.21135495]
[1728594827096,0.1363912,59770.0,59769.0,0.21135495]
[1728594828700,0.0566582,59770.0,59769.0,0.21135495]
[1728594828897,0.0257582,59770.0,59769.0,0.21135495]
[1728594829100,0.0237582,59770.0,59769.0,0.21135495]
[1728594829306,0.0257582,59770.0,59769.0,0.21135495]
[1728594831408,0.0257582,59770.0,59769.0,0.31147374]
[1728594833206,0.0257582,59770.0,59769.0,0.21135495]
[1728594833402,0.0257582,59770.0,59769.0,0.31147374]
[1728594834006,0.0257582,59770.0,59769.0,0.21135495]
[1728594834711,0.0257582,59770.0,59769.0,0.083734]
[1728594840332,0.083736,59768.0,59767.0,0.15048944]
[1728594840510,0.083736,59768.0,59767.0,0.083737]
[1728594841805,0.083736,59768.0,59767.0,0.36346933]
[1728594843219,0.213736,59768.0,59767.0,0.27973233]
[1728594844618,0.213736,59768.0,59767.0,0.12761539]
[1728594845629,0.213736,59768.0,59767.0,0.27990456]
[1728594847221,0.213736,59768.0,59767.0,0.12761539]
[1728594847817,0.213736,59768.0,59767.0,0.36364886]
[1728594848014,0.083736,59768.0,59767.0,0.36364886]
[1728594850017,0.083736,59768.0,59767.0,0.083737]
[1728594853230,0.083736,59768.0,59767.0,0.15056323]
[1728594853919,0.083736,59768.0,59767.0,0.083737]
[1728594854430,0.083736,59768.0,59767.0,0.15056323]
[1728594856923,0.083736,59768.0,59767.0,0.36366394]
[1728594860220,0.083736,59768.0,59767.0,0.36371155]
[1728594864835,0.213736,59768.0,59767.0,0.083737]
[1728594871936,0.17183864,59768.0,59767.0,0.36377323]
[1728594874333,0.17183864,59768.0,59767.0,0.36337349]
[1728594877134,0.0639,59769.0,59768.0,0.083736]
[1728594877344,0.1939,59769.0,59768.0,0.36337249]
[1728594877745,0.277634,59769.0,59768.0,0.36337249]
[1728594878236,0.278634,59769.0,59768.0,0.36337249]
[1728594878436,0.279634,59769.0,59768.0,0.36337249]
[1728594879034,0.1959,59769.0,59768.0,0.36328119]
[1728594879437,0.13724534,59769.0,59768.0,0.36328119]
[1728594879638,0.00724534,59769.0,59768.0,0.36328119]
[1728594879840,0.00724534,59769.0,59768.0,0.083736]
[1728594880236,0.002,59769.0,59768.0,0.13391488]
[1728594880432,0.002,59769.0,59768.0,0.444536]
[1728594881541,0.002,59769.0,59768.0,0.15060186]
[1728594882040,0.002,59769.0,59768.0,0.083736]
[1728594882443,0.002,59769.0,59768.0,0.15059127]
[1728594882743,0.002,59769.0,59768.0,0.083736]
[1728594885633,0.002,59769.0,59768.0,0.1505684]
[1728594886348,0.002,59769.0,59768.0,0.15056326]
[1728594887044,0.085734,59769.0,59768.0,0.12677728]
[1728594889539,0.085734,59769.0,59768.0,0.21051328]
[1728594890441,0.002,59769.0,59768.0,0.34051328]
[1728594890951,0.002,59769.0,59768.0,0.49183774]
[1728594891147,0.002,59769.0,59768.0,0.34051328]
[1728594892244,0.002,59769.0,59768.0,0.49185858]
[1728594893045,0.002,59769.0,59768.0,0.12677728]
[1728594893046,0.215734,59769.0,59768.0,0.12677728]
[1728594896242,0.576534,59769.0,59768.0,0.12677728]
[1728594897036,1.678454,59769.0,59768.0,0.10601158]
[1728594897241,1.678454,59769.0,59758.0,0.3647]
[1728594897242,1.548454,59769.0,59767.0,0.08354911]
[1728594897448,0.083737,59767.0,59766.0,0.08354911]
[1728594897647,0.213737,59767.0,59766.0,0.08354911]
[1728594897950,1.345797,59767.0,59766.0,0.08354911]
[1728594898947,0.083739,59766.0,59762.0,0.10027692]
[1728594899149,0.4908,59763.0,59762.0,0.10027692]
[1728594899450,0.083744,59762.0,59761.0,0.10027692]
[1728594899752,0.213744,59762.0,59761.0,0.10027692]
[1728594900855,0.213744,59762.0,59761.0,0.10627692]
[1728594901049,0.574544,59762.0,59761.0,0.10627692]
[1728594901446,0.574544,59762.0,59761.0,0.19002292]
[1728594901663,0.575544,59762.0,59761.0,0.089746]
[1728594901957,0.575544,59762.0,59761.0,0.1565378]
[1728594902249,0.445544,59762.0,59761.0,0.1565378]
[1728594902453,0.575544,59762.0,59761.0,0.1565378]
[1728594903348,0.575544,59762.0,59761.0,0.089746]
[1728594904152,0.575544,59762.0,59761.0,0.1565378]
[1728594904457,0.575544,59762.0,59761.0,0.089746]
[1728594904661,0.4918,59762.0,59761.0,0.089746]
[1728594904849,0.131,59762.0,59761.0,0.089746]
[1728594905251,0.001,59762.0,59761.0,0.15651668]
[1728594905559,0.001,59762.0,59761.0,0.089746]
[1728594906056,0.131,59762.0,59761.0,0.089746]
[1728594909554,0.15315629,59762.0,59761.0,0.089746]
[1728594909748,0.23690029,59762.0,59761.0,0.089746]
[1728594909947,0.23690029,59762.0,59761.0,0.19002292]
[1728594910445,0.23690029,59762.0,59761.0,0.089746]
[1728594911155,0.15315629,59762.0,59761.0,0.089746]
[1728594912353,0.15315629,59762.0,59761.0,0.21641391]
[1728594914549,0.02315629,59762.0,59761.0,0.21641391]
[1728594915849,0.02315629,59762.0,59761.0,0.36737275]
[1728594916847,0.64037811,59765.0,59761.0,0.28362675]
[1728594917048,0.64037811,59765.0,59764.0,0.18399295]
[1728594917049,0.55663711,59765.0,59764.0,0.18399295]
[1728594917355,0.02168346,59765.0,59764.0,0.3609597]
[1728594917557,0.213735,59769.0,59765.0,0.08374]
[1728594917558,0.13,59766.0,59765.0,0.08374]
[1728594917752,0.13,59766.0,59765.0,0.3609587]
[1728594919053,0.13,59766.0,59765.0,0.3619587]
[1728594920157,0.13,59766.0,59765.0,0.36112713]
[1728594921548,0.13,59766.0,59765.0,0.21083122]
[1728594923260,0.213739,59766.0,59765.0,0.21083122]
[1728594923453,0.213739,59766.0,59765.0,0.36127178]
[1728594923853,0.13,59766.0,59765.0,0.36127178]
[1728594924755,0.13,59766.0,59765.0,0.36121285]
[1728594925054,0.13,59766.0,59765.0,0.08474]
[1728594930357,0.02180861,59769.0,59768.0,0.083736]
[1728594930561,0.083733,59771.0,59770.0,0.083731]
[1728594931864,0.086733,59771.0,59770.0,0.083731]
[1728594932062,0.086733,59771.0,59770.0,0.20962664]
[1728594932366,0.086733,59771.0,59770.0,0.083731]
[1728594932367,0.089733,59771.0,59770.0,0.083731]
[1728594932561,0.089733,59771.0,59770.0,0.20961583]
[1728594933266,0.089733,59771.0,59770.0,0.35966948]
[1728594934159,0.089733,59771.0,59770.0,0.35962421]
[1728594934968,0.006,59771.0,59770.0,0.35962421]
[1728594935157,0.006,59771.0,59770.0,0.20959689]
[1728594935355,0.006,59771.0,59770.0,0.72032687]
[1728594938275,0.006,59771.0,59770.0,0.57039689]
[1728594939071,0.006,59771.0,59770.0,0.72015113]
[1728594939272,0.006,59771.0,59770.0,0.444531]
[1728594947176,0.006,59771.0,59770.0,0.57026587]
[1728594948076,0.006,59771.0,59770.0,0.20946587]
[1728594948277,0.006,59771.0,59770.0,0.35928753]
[1728594948577,0.006,59771.0,59770.0,0.20946587]
[1728594953175,0.006,59771.0,59770.0,0.20951237]
[1728594954181,0.006,59771.0,59770.0,0.13382034]
[1728594956573,0.006,59771.0,59770.0,0.083731]
[1728594957988,0.006,59771.0,59770.0,0.15051679]
[1728594958287,0.006,59771.0,59770.0,0.083731]
[1728594958483,0.006,59771.0,59770.0,1.443731]
[1728594958686,0.083722,59778.0,59777.0,0.083723]
[1728594959589,0.08622589,59783.0,59782.0,0.083716]
[1728594959884,0.08622589,59783.0,59782.0,0.13381299]
[1728594960087,0.08622589,59783.0,59782.0,0.083716]
[1728594960284,0.10802039,59783.0,59782.0,0.15052807]
[1728594960988,0.00250989,59783.0,59782.0,0.28052807]
[1728594961179,0.00250989,59783.0,59782.0,0.213716]
[1728594961684,0.01650989,59783.0,59782.0,0.28044874]
[1728594961985,0.01650989,59783.0,59782.0,0.213716]
[1728594962381,0.10554954,59785.0,59784.0,0.083713]
[1728594962382,0.06366954,59785.0,59784.0,0.083713]
[1728594962583,0.083711,59786.0,59785.0,0.083712]
[1728594962783,0.083711,59786.0,59785.0,0.21018527]
[1728594964182,0.097711,59786.0,59785.0,0.21018527]